bitfinex/quotes_BTCUSD_20241004
["timestamp","ask_amount","ask_price","bid_price","bid_amount"]
[1728047376984,0.04952459,61886.0,61885.0,0.29932407]
[1728047377417,0.04852459,61886.0,61885.0,0.29632407]
[1728047377861,0.04952459,61886.0,61885.0,0.63391078]
[1728047378313,0.24361646,61903.0,61902.0,0.161545]
[1728047378531,0.24361646,61903.0,61902.0,0.61742304]
[1728047378721,0.24361646,61903.0,61902.0,0.62626124]
[1728047379160,0.00164,61903.0,61902.0,0.62626124]
[1728047379603,0.00164,61903.0,61902.0,0.62926124]
[1728047380056,0.0170866,61903.0,61902.0,0.62626124]
[1728047380273,0.00164,61903.0,61902.0,0.62626124]
[1728047380953,0.00164,61903.0,61902.0,0.63026124]
[1728047381234,0.00164,61903.0,61902.0,0.62626124]
[1728047381700,0.00164,61903.0,61902.0,0.3458832]
[1728047381907,0.00164,61903.0,61902.0,0.2703832]
[1728047382167,0.0170769,61903.0,61902.0,0.2703832]
[1728047382398,0.0170769,61903.0,61902.0,0.0088382]
[1728047382625,0.0170769,61903.0,61902.0,0.0098382]
[1728047383115,0.04177672,61903.0,61902.0,0.1713832]
[1728047383362,0.04177672,61903.0,61902.0,0.0108382]
[1728047383363,0.05277672,61903.0,61902.0,0.0108382]
[1728047383812,0.05277672,61903.0,61902.0,0.0098382]
[1728047384050,0.05277672,61903.0,61885.0,0.00082]
[1728047384051,0.0193,61902.0,61885.0,0.00082]
[1728047384262,0.161587,61886.0,61885.0,0.00082]
[1728047384514,0.32477371,61886.0,61885.0,0.00082]
[1728047384741,0.44992158,61886.0,61885.0,0.00082]
[1728047384966,0.86729449,61886.0,61885.0,0.00082]
[1728047385208,0.96729449,61886.0,61885.0,0.00082]
[1728047385468,0.227395,61883.0,61865.0,0.24197646]
[1728047385663,0.39058171,61883.0,61865.0,0.24197646]
[1728047385895,0.55176842,61883.0,61865.0,0.24197646]
[1728047386112,0.65017087,61883.0,61865.0,0.24197646]
[1728047386328,0.61194878,61883.0,61865.0,0.24197646]
[1728047386561,0.67426354,61883.0,61865.0,0.24197646]
[1728047386806,0.63940938,61883.0,61866.0,0.161639]
[1728047387018,0.62540938,61883.0,61866.0,0.161639]
[1728047387220,0.62740938,61883.0,61865.0,0.24197646]
[1728047387490,0.64140938,61883.0,61865.0,0.24197646]
[1728047387751,0.7380389,61883.0,61856.0,0.399128]
[1728047387995,0.82669534,61883.0,61882.0,0.00182]
[1728047388220,0.71606582,61883.0,61882.0,0.00082]
[1728047388744,0.70206582,61883.0,61882.0,0.00082]
[1728047388941,0.73006582,61883.0,61882.0,0.00182]
[1728047389155,0.71606582,61883.0,61882.0,0.00082]
[1728047389404,0.79863829,61883.0,61882.0,0.00082]
[1728047389633,0.79663829,61883.0,61882.0,0.00082]
[1728047389845,0.71406582,61883.0,61882.0,0.00082]
[1728047390491,0.70006582,61883.0,61882.0,0.00082]
[1728047390716,0.71406582,61883.0,61882.0,0.00182]
[1728047390951,0.72540858,61883.0,61882.0,0.00082]
[1728047391175,0.63940858,61883.0,61882.0,0.00182]
[1728047391386,0.65548055,61883.0,61882.0,0.00082]
[1728047391629,0.70374979,61883.0,61882.0,0.00082]
[1728047391850,0.62895092,61883.0,61882.0,0.00182]
[1728047392096,0.62895092,61883.0,61882.0,0.00082]
[1728047392097,0.27616921,61883.0,61882.0,0.00082]
[1728047392348,0.27616921,61883.0,61882.0,0.00182]
[1728047392349,0.45176421,61883.0,61882.0,0.00182]
[1728047392597,0.27616921,61883.0,61882.0,0.00182]
[1728047392860,0.26806937,61883.0,61882.0,0.00182]
[1728047393066,0.25672661,61883.0,61882.0,0.01766636]
[1728047393325,0.53247538,61883.0,61882.0,0.01766636]
[1728047393575,0.54057408,61883.0,61882.0,0.01666636]
[1728047393815,0.37797908,61883.0,61882.0,0.00082]
[1728047394071,0.26382531,61883.0,61882.0,0.00182]
[1728047394301,0.26382531,61883.0,61882.0,0.162417]
[1728047394510,0.26382531,61883.0,61882.0,0.17616396]
[1728047394511,0.25248297,61883.0,61882.0,0.17616396]
[1728047394729,0.20418671,61883.0,61882.0,0.17616396]
[1728047394957,0.21132779,61883.0,61882.0,0.17516396]
[1728047395200,0.21722955,61883.0,61882.0,0.17616396]
[1728047395430,0.17718671,61883.0,61882.0,0.17516396]
[1728047395653,0.20181746,61883.0,61882.0,0.17516396]
[1728047395887,0.17858092,61883.0,61882.0,0.17516396]
[1728047396122,0.21122971,61883.0,61882.0,0.17516396]
[1728047396310,0.18658092,61883.0,61882.0,0.17516396]
[1728047396743,0.19558092,61883.0,61882.0,0.17616396]
[1728047397002,0.22024401,61883.0,61882.0,0.17616396]
[1728047397270,0.22024401,61883.0,61882.0,0.17516396]
[1728047397271,0.19558092,61883.0,61882.0,0.17516396]
[1728047397479,0.20358092,61883.0,61882.0,0.17616396]
[1728047398144,0.18818671,61883.0,61882.0,0.17616396]
[1728047398360,0.22316388,61883.0,61882.0,0.17616396]
[1728047398582,0.2385821,61883.0,61882.0,0.17616396]
[1728047398817,0.2385821,61883.0,61882.0,0.01456696]
[1728047399020,0.26325188,61883.0,61882.0,0.17616396]
[1728047399937,0.22827471,61883.0,61882.0,0.17616396]
[1728047400157,0.22830303,61883.0,61882.0,0.17616396]
[1728047400369,0.20360493,61883.0,61882.0,0.17616396]
[1728047400614,0.22830192,61883.0,61882.0,0.17616396]
[1728047401334,0.20360493,61883.0,61882.0,0.17616396]
[1728047401573,0.04041822,61883.0,61882.0,0.17616396]
[1728047401823,0.04041822,61883.0,61882.0,0.01456696]
[1728047401824,0.36519993,61883.0,61882.0,0.01456696]
[1728047402059,0.22830454,61883.0,61882.0,0.01456696]
[1728047402548,0.22830454,61883.0,61882.0,0.17616396]
[1728047402776,0.26745759,61883.0,61882.0,0.17616396]
[1728047402996,0.22830454,61883.0,61882.0,0.17616396]
[1728047403226,0.06511783,61883.0,61882.0,0.17616396]
[1728047403704,0.04041822,61883.0,61882.0,0.17616396]
[1728047403977,0.04042854,61883.0,61882.0,0.17616396]
[1728047404221,0.04042854,61883.0,61882.0,0.01456696]
[1728047404222,0.20361525,61883.0,61882.0,0.01456696]
[1728047404452,0.22414078,61883.0,61882.0,0.01456696]
[1728047404892,0.41042052,61883.0,61882.0,0.01456696]
[1728047404895,0.24882552,61883.0,61882.0,0.01456696]
[1728047405137,0.24882552,61883.0,61882.0,0.17616396]
[1728047405652,0.22829999,61883.0,61882.0,0.17616396]
[1728047406321,0.06511328,61883.0,61882.0,0.17616396]
[1728047406567,0.04042854,61883.0,61882.0,0.17616396]
[1728047408010,0.04042854,61883.0,61882.0,0.27616396]
[1728047408011,0.025,61883.0,61882.0,0.27616396]
[1728047408212,0.025,61883.0,61882.0,0.35516396]
[1728047408682,0.00164,61885.0,61882.0,0.19256696]
[1728047408945,0.00164,61885.0,61884.0,0.56497004]
[1728047409439,0.00164,61885.0,61884.0,0.57769697]
[1728047409655,0.00164,61885.0,61884.0,0.65319697]
[1728047410389,0.00164,61885.0,61884.0,0.63019697]
[1728047410635,0.00164,61885.0,61884.0,0.34981893]
[1728047411333,0.00164,61885.0,61884.0,0.35181893]
[1728047411593,0.00164,61885.0,61884.0,0.34981893]
[1728047411787,0.01907027,61885.0,61884.0,0.34981893]
[1728047412008,0.00364,61885.0,61884.0,0.34981893]
[1728047412231,0.00264,61885.0,61884.0,0.34981893]
[1728047412519,0.01807027,61885.0,61884.0,0.35500965]
[1728047412767,0.02007027,61885.0,61884.0,0.35500965]
[1728047412989,0.04481567,61885.0,61884.0,0.35500965]
[1728047413195,0.04381567,61885.0,61884.0,0.35500965]
[1728047413718,0.00564,61885.0,61884.0,0.35500965]
[1728047413965,0.04382578,61885.0,61884.0,0.35500965]
[1728047414167,0.04482578,61885.0,61884.0,0.35500965]
[1728047414448,0.0418258,61885.0,61884.0,0.35500965]
[1728047414658,0.0448258,61885.0,61884.0,0.35500965]
[1728047415124,0.0438258,61885.0,61884.0,0.35500965]
[1728047415602,0.0448258,61885.0,61884.0,0.35500965]
[1728047415864,0.0438258,61885.0,61884.0,0.35500965]
[1728047416330,0.04282501,61885.0,61884.0,0.35500965]
[1728047416824,0.04382505,61885.0,61884.0,0.35500965]
[1728047417045,0.04282524,61885.0,61884.0,0.63538769]
[1728047417299,0.04282524,61885.0,61884.0,0.65838769]
[1728047417300,0.01909608,61885.0,61884.0,0.65838769]
[1728047417549,0.00364,61885.0,61884.0,0.65838769]
[1728047417791,0.00364,61885.0,61884.0,0.56484054]
[1728047417792,0.00264,61885.0,61884.0,0.56484054]
[1728047418743,0.00164,61885.0,61884.0,0.56484054]
[1728047418973,0.00164,61885.0,61884.0,0.56584054]
[1728047419456,0.00164,61885.0,61884.0,0.56484054]
[1728047419696,0.01712502,61885.0,61884.0,0.56484054]
[1728047419959,0.01812506,61885.0,61884.0,0.56784054]
[1728047420232,0.00264,61885.0,61884.0,0.56584054]
[1728047420504,0.00364,61885.0,61884.0,0.57184054]
[1728047420728,0.01812505,61885.0,61884.0,0.35600965]
[1728047421003,0.01812505,61885.0,61884.0,0.35900965]
[1728047421218,0.01712505,61885.0,61884.0,0.56484054]
[1728047421461,0.01712505,61885.0,61884.0,0.56584054]
[1728047421462,0.01534805,61885.0,61884.0,0.56584054]
[1728047421695,0.001,61885.0,61884.0,0.57184054]
[1728047421931,0.001,61885.0,61884.0,0.57084054]
[1728047422398,0.001,61885.0,61884.0,0.57184054]
[1728047422857,0.001,61885.0,61884.0,0.57084054]
[1728047423121,0.24197646,61893.0,61892.0,0.161571]
[1728047423353,0.27486737,61893.0,61892.0,0.161571]
[1728047423606,0.27486737,61893.0,61892.0,0.1724317]
[1728047423851,0.03289091,61893.0,61892.0,0.1724317]
[1728047424576,0.002,61893.0,61892.0,0.3340027]
[1728047424813,0.02679504,61893.0,61892.0,0.4955737]
[1728047425293,0.02879504,61893.0,61892.0,0.4955737]
[1728047426045,0.02679504,61893.0,61892.0,0.4955737]
[1728047426290,0.03079504,61893.0,61892.0,0.4955737]
[1728047426818,0.02679504,61893.0,61892.0,0.95546041]
[1728047427049,0.02679504,61893.0,61892.0,2.64605141]
[1728047427050,0.004,61893.0,61892.0,2.64605141]
[1728047427363,0.24197646,61900.0,61892.0,2.64605141]
[1728047427364,0.24197646,61900.0,61899.0,0.365853]
[1728047427543,0.00164,61903.0,61902.0,0.284545]
[1728047427766,0.00164,61903.0,61902.0,0.47137589]
[1728047428030,0.00164,61903.0,61902.0,0.48217979]
[1728047428359,0.00164,61903.0,61902.0,0.2953489]
[1728047428590,0.00164,61903.0,61902.0,0.2723489]
[1728047429016,0.0264501,61903.0,61902.0,0.2733489]
[1728047430513,0.0264501,61903.0,61902.0,0.2773489]
[1728047430669,0.0264501,61903.0,61902.0,0.28268613]
[1728047431143,0.0264501,61903.0,61902.0,0.28168613]
[1728047431358,0.0264501,61903.0,61902.0,0.27768613]
[1728047431656,0.0304501,61903.0,61902.0,0.27937073]
[1728047431851,0.00364,61903.0,61902.0,0.2712853]
[1728047432095,0.00164,61903.0,61902.0,0.2712853]
[1728047432321,0.00564,61903.0,61902.0,0.27451579]
[1728047432588,0.00564,61903.0,61902.0,0.29751579]
[1728047432788,0.00164,61903.0,61902.0,0.29751579]
[1728047433038,0.00164,61903.0,61902.0,0.30051579]
[1728047433293,0.00564,61903.0,61902.0,0.30051579]
[1728047433501,0.00164,61903.0,61902.0,0.30051579]
[1728047433769,0.01713089,61903.0,61902.0,0.3744853]
[1728047433986,0.01813089,61903.0,61902.0,0.3814853]
[1728047434217,0.00264,61903.0,61902.0,0.3814853]
[1728047434428,0.00264,61903.0,61902.0,0.3784853]
[1728047434679,0.00264,61903.0,61902.0,0.3744853]
[1728047435138,0.00264,61903.0,61902.0,0.3804853]
[1728047435468,0.00364,61903.0,61902.0,0.3834853]
[1728047435882,0.00264,61903.0,61902.0,0.3804853]
[1728047436153,0.00364,61903.0,61902.0,0.3834853]
[1728047436379,0.00264,61903.0,61902.0,0.3744853]
[1728047436623,0.00364,61903.0,61902.0,0.3814853]
[1728047436830,0.00364,61903.0,61902.0,0.3744853]
[1728047437049,0.00464,61903.0,61902.0,0.3834853]
[1728047437515,0.00164,61903.0,61902.0,0.3714853]
[1728047437764,0.00364,61903.0,61902.0,0.3844853]
[1728047438236,0.00264,61903.0,61902.0,0.3814853]
[1728047438709,0.00364,61903.0,61902.0,0.3844853]
[1728047439182,0.00264,61903.0,61902.0,0.3814853]
[1728047439436,0.00264,61903.0,61902.0,0.3744853]
[1728047439921,0.00364,61903.0,61902.0,0.3804853]
[1728047440108,0.00264,61903.0,61902.0,0.3744853]
[1728047440625,0.00264,61903.0,61902.0,0.3804853]
[1728047440871,0.00264,61903.0,61902.0,0.3834853]
[1728047441108,0.00364,61903.0,61902.0,0.3834853]
[1728047441306,0.00264,61903.0,61902.0,0.3804853]
[1728047441791,0.00364,61903.0,61902.0,0.3834853]
[1728047444631,0.00364,61903.0,61902.0,0.1832853]
[1728047444843,0.01914375,61903.0,61902.0,0.1832853]
[1728047445086,0.01884853,61903.0,61902.0,0.1832853]
[1728047445305,0.04366236,61903.0,61902.0,0.1832853]
[1728047445557,0.04366236,61903.0,61902.0,0.37174635]
[1728047445790,0.01884853,61903.0,61902.0,0.37174635]
[1728047446021,0.00334478,61903.0,61902.0,0.49474635]
[1728047446287,0.00334478,61903.0,61902.0,0.48274635]
[1728047446288,0.00134478,61903.0,61902.0,0.48274635]
[1728047446624,0.01685144,61903.0,61902.0,0.27291546]
[1728047446836,0.01685144,61903.0,61902.0,0.17291546]
[1728047447057,0.02285144,61903.0,61902.0,0.17391546]
[1728047447294,0.04167132,61903.0,61902.0,0.17291546]
[1728047447523,0.24749566,61903.0,61902.0,0.00603323]
[1728047447746,0.47020103,61903.0,61902.0,0.01003323]
[1728047447960,0.47020103,61903.0,61888.0,0.32316]
[1728047447961,0.3107522,61903.0,61895.0,0.161563]
[1728047448197,0.28298478,61902.0,61896.0,0.161559]
[1728047448408,0.161553,61900.0,61896.0,0.16758878]
[1728047448609,0.36342354,61901.0,61896.0,0.00602978]
[1728047448610,0.20351325,61899.0,61896.0,0.00602978]
[1728047448845,0.04032654,61898.0,61897.0,0.34838889]
[1728047449072,0.01550666,61898.0,61897.0,0.79968672]
[1728047449301,0.00834478,61903.0,61898.0,0.1]
[1728047449617,0.00834478,61903.0,61902.0,0.44837589]
[1728047449767,0.01434478,61903.0,61902.0,0.47237589]
[1728047449999,0.02386776,61903.0,61902.0,0.47590457]
[1728047450461,0.02386776,61903.0,61902.0,0.45290457]
[1728047451166,0.01686776,61903.0,61902.0,0.45290457]
[1728047451396,0.01786776,61903.0,61902.0,0.45990457]
[1728047451601,0.01686776,61903.0,61902.0,0.45290457]
[1728047452054,0.0165866,61903.0,61902.0,0.45290457]
[1728047452257,0.0165866,61903.0,61902.0,0.26707368]
[1728047452700,0.04142424,61903.0,61902.0,0.00552868]
[1728047452920,0.17977331,61903.0,61902.0,0.00652868]
[1728047453142,0.26465998,61903.0,61902.0,0.00652868]
[1728047453341,0.21270509,61903.0,61902.0,0.00552868]
[1728047453610,0.21370509,61903.0,61902.0,0.007]
[1728047453858,0.04951838,61903.0,61902.0,0.34837589]
[1728047454057,0.05051838,61903.0,61902.0,0.35590428]
[1728047454262,0.04742424,61903.0,61902.0,0.35590428]
[1728047454487,0.04642424,61903.0,61902.0,0.45589925]
[1728047454892,0.05142424,61903.0,61902.0,0.45589925]
[1728047455067,0.04642424,61903.0,61902.0,0.45589925]
[1728047455337,0.04142424,61903.0,61902.0,0.48421449]
[1728047455558,0.04242424,61903.0,61902.0,0.48721449]
[1728047455731,0.04242424,61903.0,61902.0,0.58044892]
[1728047455976,0.00206362,61903.0,61902.0,0.58044892]
[1728047456406,0.00206362,61903.0,61902.0,0.56344892]
[1728047456407,0.00306362,61903.0,61902.0,0.56344892]
[1728047456627,0.04248138,61903.0,61902.0,0.2773836]
[1728047456836,0.04148138,61903.0,61902.0,0.2743836]
[1728047457067,0.04248138,61903.0,61902.0,0.1823836]
[1728047457276,0.04248138,61903.0,61902.0,0.1763836]
[1728047457277,0.04148138,61903.0,61902.0,0.1763836]
[1728047457496,0.04248138,61903.0,61902.0,0.1823836]
[1728047457709,0.04248138,61903.0,61902.0,0.1803836]
[1728047457710,0.05057494,61903.0,61902.0,0.1803836]
[1728047457929,0.05157494,61903.0,61902.0,0.1743836]
[1728047458121,0.05157494,61903.0,61902.0,0.17737857]
[1728047458393,0.04148138,61903.0,61902.0,0.17819857]
[1728047458587,0.04348138,61903.0,61902.0,0.17819857]
[1728047458729,0.04748138,61903.0,61902.0,0.17819857]
[1728047458948,0.07173072,61903.0,61902.0,0.17819857]
[1728047459972,0.06573072,61903.0,61902.0,0.17819857]
[1728047460186,0.05963716,61903.0,61902.0,0.17819857]
[1728047460394,0.06773072,61903.0,61902.0,0.17819857]
[1728047461317,0.06973072,61903.0,61902.0,0.17819857]
[1728047461537,0.00306362,61903.0,61902.0,0.17819857]
[1728047461736,0.06734222,61903.0,61902.0,0.17819857]
[1728047462007,0.06934222,61903.0,61902.0,0.17819857]
[1728047462251,0.06068524,61903.0,61902.0,0.17819857]
[1728047462691,0.06877986,61903.0,61902.0,0.17819857]
[1728047463104,0.07077986,61903.0,61902.0,0.17819857]
[1728047463340,0.05461713,61903.0,61902.0,0.17819857]
[1728047463800,0.04652251,61903.0,61902.0,0.01665357]
[1728047464066,0.20806551,61903.0,61902.0,0.01133833]
[1728047464273,0.37934684,61903.0,61902.0,0.01133833]
[1728047464501,0.37934684,61903.0,61902.0,0.00381497]
[1728047464502,0.39550444,61903.0,61902.0,0.00381497]
[1728047464742,0.37934684,61903.0,61902.0,0.00381497]
[1728047465225,0.37734684,61903.0,61902.0,0.00381497]
[1728047465463,0.4026795,61903.0,61902.0,0.00381497]
[1728047465705,0.4026795,61903.0,61893.0,0.00082]
[1728047465706,0.161566,61894.0,61893.0,0.00082]
[1728047466017,0.37486858,61894.0,61893.0,0.00082]
[1728047466722,0.40020555,61894.0,61893.0,0.00082]
[1728047467180,0.41420555,61894.0,61893.0,0.00182]
[1728047467397,0.56245684,61894.0,61893.0,0.00182]
[1728047467848,0.53711987,61894.0,61893.0,0.00182]
[1728047468384,0.87169633,61894.0,61893.0,0.00182]
[1728047468589,0.62971987,61894.0,61893.0,0.00182]
[1728047468757,0.71071987,61894.0,61893.0,0.00182]
[1728047470562,0.49546858,61894.0,61893.0,0.00182]
[1728047470780,0.48737396,61894.0,61893.0,0.00182]
[1728047470991,0.51271059,61894.0,61893.0,0.00182]
[1728047471269,0.42011059,61894.0,61893.0,0.00182]
[1728047471704,0.42011059,61894.0,61893.0,0.01083321]
[1728047471933,0.39477396,61894.0,61893.0,0.01083321]
[1728047472173,0.35275271,61894.0,61893.0,0.01083321]
[1728047472386,0.23324867,61894.0,61893.0,0.01083321]
[1728047472619,0.23324867,61894.0,61893.0,0.17240221]
[1728047472620,0.07006196,61894.0,61893.0,0.17240221]
[1728047472865,0.07815727,61894.0,61893.0,0.17240221]
[1728047473309,0.05606196,61894.0,61893.0,0.17240221]
[1728047473547,0.05606196,61894.0,61893.0,0.17140221]
[1728047473548,0.04206196,61894.0,61893.0,0.17140221]
[1728047473836,0.04417768,61894.0,61893.0,0.17240221]
[1728047474069,0.04205983,61894.0,61893.0,0.17140221]
[1728047474309,0.02317768,61894.0,61893.0,0.17240221]
[1728047474535,0.02317768,61894.0,61893.0,0.17140221]
[1728047475026,0.03017829,61894.0,61893.0,0.17240221]
[1728047475967,0.0560554,61894.0,61893.0,0.17240221]
[1728047476420,0.0490554,61894.0,61893.0,0.17240221]
[1728047476629,0.02317829,61894.0,61893.0,0.17140221]
[1728047476848,0.06315065,61894.0,61893.0,0.17240221]
[1728047477086,0.05615065,61894.0,61893.0,0.17240221]
[1728047477328,0.0420554,61894.0,61893.0,0.17140221]
[1728047477631,0.0500554,61894.0,61893.0,0.17140221]
[1728047477853,0.0500554,61894.0,61893.0,0.35820326]
[1728047478109,0.009,61894.0,61893.0,0.35820326]
[1728047478339,0.04700542,61894.0,61893.0,0.35820326]
[1728047479469,0.04200542,61894.0,61893.0,0.17140221]
[1728047479926,0.04300542,61894.0,61893.0,0.00983321]
[1728047480191,0.04700542,61894.0,61893.0,0.00983321]
[1728047480426,0.04200542,61894.0,61893.0,0.162389]
[1728047480665,0.04200542,61894.0,61893.0,0.17140031]
[1728047480898,0.04500542,61894.0,61893.0,0.17140031]
[1728047481187,0.006,61894.0,61893.0,0.17140031]
[1728047481443,0.007,61894.0,61893.0,0.17140031]
[1728047481667,0.007,61894.0,61893.0,0.29440031]
[1728047481668,0.04097148,61894.0,61893.0,0.29440031]
[1728047482119,0.09919562,61894.0,61893.0,0.29440031]
[1728047482558,0.0652242,61894.0,61893.0,0.37250031]
[1728047482813,0.07032006,61894.0,61893.0,0.37250031]
[1728047483218,0.07132006,61894.0,61893.0,0.37250031]
[1728047483448,0.06732006,61894.0,61893.0,0.37250031]
[1728047483887,0.06632006,61894.0,61893.0,0.37550031]
[1728047484633,0.01717222,61894.0,61893.0,0.37450031]
[1728047484783,0.06717898,61894.0,61893.0,0.37450031]
[1728047485009,0.06817898,61894.0,61893.0,0.38250031]
[1728047485458,0.06817898,61894.0,61893.0,0.37450031]
[1728047485459,0.06717898,61894.0,61893.0,0.37450031]
[1728047486157,0.06617898,61894.0,61893.0,0.37250031]
[1728047486385,0.08332779,61894.0,61893.0,0.47110031]
[1728047486913,0.25298003,61894.0,61893.0,0.27140031]
[1728047487134,0.46666239,61894.0,61893.0,0.01683131]
[1728047487380,0.62822839,61894.0,61893.0,0.01183131]
[1728047487592,0.62722839,61894.0,61893.0,0.00082]
[1728047487842,0.62822839,61894.0,61893.0,0.00882]
[1728047488078,0.62822839,61894.0,61893.0,0.01082]
[1728047488316,0.62722839,61894.0,61893.0,0.00282]
[1728047488547,0.61105617,61894.0,61893.0,0.00282]
[1728047489048,0.42425512,61894.0,61893.0,0.00282]
[1728047489267,0.42925512,61894.0,61893.0,0.00282]
[1728047489511,0.42925512,61894.0,61893.0,0.01233009]
[1728047489738,0.42925512,61894.0,61893.0,0.00282]
[1728047489972,0.42925512,61894.0,61893.0,0.00082]
[1728047490201,0.42925512,61894.0,61893.0,0.01033009]
[1728047490473,0.43425512,61894.0,61893.0,0.00082]
[1728047490696,0.43425512,61894.0,61893.0,0.01033009]
[1728047490963,0.48269288,61894.0,61893.0,0.01033009]
[1728047491148,0.52305537,61894.0,61893.0,0.0126233]
[1728047491356,0.45040476,61894.0,61893.0,0.00082]
[1728047491569,0.38475947,61894.0,61893.0,0.00082]
[1728047491816,0.33475271,61894.0,61893.0,0.00082]
[1728047492260,0.38453923,61894.0,61893.0,0.00082]
[1728047492488,0.40068964,61894.0,61893.0,0.00082]
[1728047492724,0.68756124,61894.0,61893.0,0.00082]
[1728047492980,0.54224795,61894.0,61893.0,0.00082]
[1728047493197,0.38453923,61894.0,61893.0,0.00082]
[1728047494133,0.48134548,61894.0,61893.0,0.00082]
[1728047494342,0.38453923,61894.0,61893.0,0.00082]
[1728047494586,0.37453923,61894.0,61893.0,0.00082]
[1728047494829,0.38753923,61894.0,61893.0,0.00182]
[1728047495071,0.46013197,61894.0,61893.0,0.00082]
[1728047495332,0.63731868,61894.0,61893.0,0.00182]
[1728047495594,0.56472594,61894.0,61893.0,0.00182]
[1728047496460,0.63731868,61894.0,61893.0,0.00182]
[1728047496593,0.56472594,61894.0,61893.0,0.00182]
[1728047497364,0.55172594,61894.0,61893.0,0.00182]
[1728047497447,0.56572594,61894.0,61893.0,0.00182]
[1728047497896,0.51593942,61894.0,61893.0,0.00182]
[1728047498354,0.56432239,61894.0,61893.0,0.00182]
[1728047498518,0.56572497,61894.0,61893.0,0.00182]
[1728047498940,0.68870497,61894.0,61893.0,0.00182]
[1728047499564,0.56772497,61894.0,61893.0,0.00182]
[1728047500607,0.88050451,61894.0,61893.0,0.00182]
[1728047500809,0.73522497,61894.0,61893.0,0.00182]
[1728047501029,0.74922497,61894.0,61893.0,0.00182]
[1728047501552,0.72122497,61894.0,61893.0,0.00082]
[1728047501965,0.74922497,61894.0,61893.0,0.00082]
[1728047502431,0.73522497,61894.0,61893.0,0.00082]
[1728047502686,0.74922497,61894.0,61893.0,0.00082]
[1728047504466,0.74909452,61894.0,61893.0,0.00082]
[1728047505822,0.77443403,61894.0,61893.0,0.00082]
[1728047506876,0.74909452,61894.0,61893.0,0.00082]
[1728047507489,0.69943942,61894.0,61893.0,0.00082]
[1728047507757,0.74909305,61894.0,61893.0,0.00082]
[1728047509034,0.77443281,61894.0,61893.0,0.00082]
[1728047509440,0.69093281,61894.0,61893.0,0.00082]
[1728047509659,0.4277461,61894.0,61893.0,0.00082]
[1728047510084,0.10299339,61894.0,61893.0,0.162389]
[1728047510312,0.10299339,61894.0,61893.0,0.24818638]
[1728047510515,0.09489418,61894.0,61893.0,0.24818638]
[1728047510686,0.08089418,61894.0,61893.0,0.24818638]
[1728047510928,0.06955442,61894.0,61893.0,0.24818638]
[1728047511304,0.06951535,61894.0,61893.0,0.24818638]
[1728047511657,0.05551535,61894.0,61893.0,0.24818638]
[1728047511786,0.04151535,61894.0,61893.0,0.24818638]
[1728047512277,0.05551535,61894.0,61893.0,0.24818638]
[1728047512523,0.04961102,61894.0,61893.0,0.08138745]
[1728047512722,0.01796744,61894.0,61893.0,0.24295645]
[1728047512934,0.04351535,61894.0,61893.0,0.24295645]
[1728047513168,0.01796744,61894.0,61893.0,0.24295645]
[1728047513413,0.39119705,61894.0,61893.0,0.08138745]
[1728047513671,0.39119705,61894.0,61893.0,0.00508745]
[1728047513905,0.40629272,61894.0,61893.0,0.00508745]
[1728047514147,0.24272672,61894.0,61893.0,0.00508745]
[1728047514367,0.1931157,61894.0,61893.0,0.00082]
[1728047514603,0.40829797,61894.0,61893.0,0.00508448]
[1728047514830,0.40829797,61894.0,61893.0,0.00082]
[1728047515051,0.41341585,61894.0,61893.0,0.00082]
[1728047515508,0.43141585,61894.0,61893.0,0.00082]
[1728047516026,0.25373197,61894.0,61893.0,0.00082]
[1728047516255,0.41529797,61894.0,61893.0,0.00082]
[1728047516488,0.40729797,61894.0,61893.0,0.00508448]
[1728047516722,0.41629797,61894.0,61893.0,0.00082]
[1728047516961,0.27084985,61894.0,61893.0,0.00508448]
[1728047517197,0.27084985,61894.0,61893.0,0.00082]
[1728047517703,0.24792086,61894.0,61893.0,0.162389]
[1728047518149,0.24792086,61894.0,61893.0,0.16665348]
[1728047519131,0.06861627,61894.0,61893.0,0.16665348]
[1728047519368,0.06861627,61894.0,61893.0,0.24245348]
[1728047519610,0.06861627,61894.0,61893.0,0.52835453]
[1728047519886,0.06051977,61894.0,61893.0,0.52835453]
[1728047520076,0.06051977,61894.0,61893.0,0.34155348]
[1728047520981,0.05051977,61894.0,61893.0,0.24245348]
[1728047521439,0.05051977,61894.0,61893.0,0.42925453]
[1728047521440,0.04306504,61894.0,61893.0,0.42925453]
[1728047521676,0.05263008,61894.0,61893.0,0.65135453]
[1728047521910,0.0666849,61894.0,61893.0,0.65135453]
[1728047522163,0.0260959,61894.0,61893.0,0.65135453]
[1728047522651,0.0080959,61894.0,61893.0,0.65135453]
[1728047522881,0.0080959,61894.0,61893.0,0.6532269]
[1728047523784,0.0090959,61894.0,61893.0,0.6532269]
[1728047524048,0.0100959,61894.0,61893.0,0.6532269]
[1728047524309,0.02602788,61894.0,61893.0,0.34432585]
[1728047524547,0.02502788,61894.0,61893.0,0.24245202]
[1728047524784,0.02402788,61894.0,61893.0,0.34245202]
[1728047525025,0.04951964,61894.0,61893.0,0.34245202]
[1728047525545,0.04949639,61894.0,61893.0,0.34245202]
[1728047525789,0.04949639,61894.0,61893.0,0.34545202]
[1728047525790,0.05049639,61894.0,61893.0,0.34545202]
[1728047526348,0.0090959,61894.0,61893.0,0.34545202]
[1728047526485,0.0090959,61894.0,61893.0,0.24545202]
[1728047526702,0.02501374,61894.0,61893.0,0.24545202]
[1728047526939,0.0100959,61894.0,61893.0,0.24545202]
[1728047527171,0.02501374,61894.0,61893.0,0.24245202]
[1728047527680,0.0120959,61894.0,61893.0,0.24245202]
[1728047527908,0.0080959,61894.0,61893.0,0.24245202]
[1728047528482,0.05245948,61894.0,61893.0,0.24245202]
[1728047528615,0.02400497,61894.0,61893.0,0.24245202]
[1728047529036,0.04136358,61894.0,61893.0,0.05588302]
[1728047529285,0.161549,61901.0,61898.0,0.161556]
[1728047529535,0.16318671,61900.0,61898.0,0.161556]
[1728047529727,0.16318671,61900.0,61899.0,0.00427325]
[1728047529932,0.19674433,61900.0,61899.0,0.00427325]
[1728047530183,0.00809571,61900.0,61899.0,0.161553]
[1728047530438,0.00809571,61900.0,61896.0,0.323119]
[1728047530439,0.00164,61902.0,61901.0,0.161548]
[1728047530912,0.01755762,61902.0,61901.0,0.16582466]
[1728047531135,0.01755762,61902.0,61901.0,0.26562466]
[1728047531136,0.00164,61902.0,61901.0,0.26562466]
[1728047531359,0.01755762,61902.0,61901.0,0.26562466]
[1728047531842,0.01755762,61902.0,61901.0,0.26749067]
[1728047532069,0.01755762,61902.0,61901.0,0.34739067]
[1728047532945,0.00164,61902.0,61901.0,0.35252074]
[1728047532946,0.00464,61902.0,61901.0,0.35252074]
[1728047533165,0.02255679,61902.0,61901.0,0.35252074]
[1728047533424,0.00664,61902.0,61901.0,0.00614267]